[Event "Titled Tuesday Blitz February 15 Late 2022"]
[White "Moskalenko, Alexander"]
[Black "Tregubov, Pavel V."]
[WhiteFideId "4155351"]
[BlackFideId "4115341"]
[WhiteElo "2515"]
[BlackElo "2341"]
[Result "1-0"]
[Round "07"]
[TimeControl "180+1"]
[Date "2022.02.15"]
[WhiteClock "0:01:23"]
[BlackClock "0:00:19"]

1. d4 {[%clk 0:03:00]}  Nf6 {[%clk 0:02:59]} 2. Bf4 {[%clk 0:02:59]}  d5 {[%clk 0:02:59]} 3. e3 {[%clk 0:02:58]}  c5 {[%clk 0:03:00]} 4. Nf3 {[%clk 0:02:57]}  Nc6 {[%clk 0:03:00]} 5. Nbd2 {[%clk 0:02:57]}  cxd4 {[%clk 0:02:59]} 6. exd4 {[%clk 0:02:58]}  Bf5 {[%clk 0:02:59]} 7. c3 {[%clk 0:02:58]}  e6 {[%clk 0:02:58]} 8. Qb3 {[%clk 0:02:55]}  Qc8 {[%clk 0:02:59]} 9. Nh4 {[%clk 0:02:55]}  Be4 {[%clk 0:02:59]} 10. Nxe4 {[%clk 0:02:52]}  Nxe4 {[%clk 0:02:58]} 11. Nf3 {[%clk 0:02:46]}  Bd6 {[%clk 0:02:57]} 12. Bxd6 {[%clk 0:02:45]}  Nxd6 {[%clk 0:02:57]} 13. Bd3 {[%clk 0:02:46]}  O-O {[%clk 0:02:56]} 14. O-O {[%clk 0:02:46]}  Rb8 {[%clk 0:02:52]} 15. a4 {[%clk 0:02:45]}  a6 {[%clk 0:02:48]} 16. a5 {[%clk 0:02:44]}  Qc7 {[%clk 0:02:46]} 17. Qa4 {[%clk 0:02:44]}  Rfe8 {[%clk 0:02:42]} 18. Rfe1 {[%clk 0:02:44]}  h6 {[%clk 0:02:42]} 19. h4 {[%clk 0:02:41]}  Ne7 {[%clk 0:02:38]} 20. g3 {[%clk 0:02:39]}  Rbc8 {[%clk 0:02:32]} 21. Ne5 {[%clk 0:02:38]}  Nc6 {[%clk 0:02:25]} 22. Nf3 {[%clk 0:02:33]}  Na7 {[%clk 0:02:19]} 23. Re2 {[%clk 0:02:32]}  Nc4 {[%clk 0:02:12]} 24. Ne5 {[%clk 0:02:22]}  Nb5 {[%clk 0:02:00]} 25. Nxc4 {[%clk 0:02:18]}  dxc4 {[%clk 0:02:00]} 26. Be4 {[%clk 0:02:18]}  e5 {[%clk 0:01:51]} 27. Bf5 {[%clk 0:02:05]}  Rcd8 {[%clk 0:01:50]} 28. Rae1 {[%clk 0:02:04]}  Nd6 {[%clk 0:01:27]} 29. Bb1 {[%clk 0:02:02]}  f6 {[%clk 0:00:43]} 30. dxe5 {[%clk 0:01:54]}  fxe5 {[%clk 0:00:38]} 31. Rxe5 {[%clk 0:01:54]}  Rxe5 {[%clk 0:00:31]} 32. Rxe5 {[%clk 0:01:55]}  Qf7 {[%clk 0:00:30]} 33. Qc2 {[%clk 0:01:52]}  Kf8 {[%clk 0:00:23]} 34. Qh7 {[%clk 0:01:50]}  Qf6 {[%clk 0:00:20]} 35. Re1 {[%clk 0:01:33]}  Nf7 {[%clk 0:00:20]} 36. Bg6 {[%clk 0:01:23]}  Rd2 {[%clk 0:00:19]} 37. Qg8+ {[%clk 0:01:23]} 1-0


[Site "https://www.chess.com"]

[Event "Titled Tuesday Blitz February 15 Late 2022"]
[White "P., Komal Kishore"]
[Black "Prohorov, Olexandr"]
[WhiteFideId "5016703"]
[BlackFideId "14105578"]
[WhiteElo "2088"]
[BlackElo "1993"]
[Result "0-1"]
[Round "07"]
[TimeControl "180+1"]
[Date "2022.02.16"]
[WhiteClock "0:00:16"]
[BlackClock "0:00:45"]

1. e4 {[%clk 0:02:46]}  c5 {[%clk 0:02:59]} 2. Nf3 {[%clk 0:02:45]}  e6 {[%clk 0:02:58]} 3. c3 {[%clk 0:02:44]}  Nf6 {[%clk 0:02:57]} 4. e5 {[%clk 0:02:43]}  Nd5 {[%clk 0:02:58]} 5. d4 {[%clk 0:02:43]}  cxd4 {[%clk 0:02:55]} 6. cxd4 {[%clk 0:02:42]}  d6 {[%clk 0:02:56]} 7. exd6 {[%clk 0:02:41]}  Qxd6 {[%clk 0:02:51]} 8. Nc3 {[%clk 0:02:42]}  Nc6 {[%clk 0:02:50]} 9. Be2 {[%clk 0:02:37]}  Be7 {[%clk 0:02:51]} 10. O-O {[%clk 0:02:36]}  O-O {[%clk 0:02:51]} 11. a3 {[%clk 0:02:33]}  a6 {[%clk 0:02:51]} 12. Ne4 {[%clk 0:02:28]}  Qd8 {[%clk 0:02:50]} 13. Bd3 {[%clk 0:02:25]}  b6 {[%clk 0:02:44]} 14. Bc2 {[%clk 0:02:23]}  Bb7 {[%clk 0:02:43]} 15. Qd3 {[%clk 0:02:21]}  g6 {[%clk 0:02:34]} 16. Bh6 {[%clk 0:02:19]}  Re8 {[%clk 0:02:34]} 17. b4 {[%clk 0:02:11]}  Nf6 {[%clk 0:02:34]} 18. Nxf6+ {[%clk 0:02:09]}  Bxf6 {[%clk 0:02:35]} 19. Rac1 {[%clk 0:02:05]}  Nxd4 {[%clk 0:02:30]} 20. Nxd4 {[%clk 0:02:03]}  Qxd4 {[%clk 0:02:31]} 21. Rfd1 {[%clk 0:02:00]}  Qg4 {[%clk 0:02:21]} 22. f3 {[%clk 0:01:54]}  Qh5 {[%clk 0:02:20]} 23. Be3 {[%clk 0:01:51]}  Rad8 {[%clk 0:02:20]} 24. Qe2 {[%clk 0:01:46]}  b5 {[%clk 0:02:20]} 25. Bb6 {[%clk 0:01:40]}  Rxd1+ {[%clk 0:02:19]} 26. Qxd1 {[%clk 0:01:33]}  Bd5 {[%clk 0:02:19]} 27. Bb3 {[%clk 0:01:28]}  Bxb3 {[%clk 0:02:10]} 28. Qxb3 {[%clk 0:01:27]}  Qg5 {[%clk 0:02:11]} 29. Rc7 {[%clk 0:01:18]}  Rd8 {[%clk 0:01:58]} 30. Rc5 {[%clk 0:01:00]}  Bd4+ {[%clk 0:01:58]} 31. Kf1 {[%clk 0:00:55]}  Bxc5 {[%clk 0:01:55]} 32. Bxd8 {[%clk 0:00:54]}  Qc1+ {[%clk 0:01:35]} 33. Ke2 {[%clk 0:00:53]}  Bf8 {[%clk 0:01:27]} 34. Bf6 {[%clk 0:00:51]}  Bg7 {[%clk 0:01:17]} 35. Be7 {[%clk 0:00:43]}  Qg1 {[%clk 0:01:13]} 36. Qd3 {[%clk 0:00:39]}  h5 {[%clk 0:01:11]} 37. Qd8+ {[%clk 0:00:36]}  Kh7 {[%clk 0:01:12]} 38. Qe8 {[%clk 0:00:36]}  Qxg2+ {[%clk 0:01:11]} 39. Ke3 {[%clk 0:00:33]}  Qg1+ {[%clk 0:01:09]} 40. Kf4 {[%clk 0:00:29]}  Qxh2+ {[%clk 0:01:09]} 41. Ke4 {[%clk 0:00:28]}  f5+ {[%clk 0:01:09]} 42. Ke3 {[%clk 0:00:26]}  Qg1+ {[%clk 0:01:06]} 43. Kf4 {[%clk 0:00:25]}  Bh6+ {[%clk 0:01:01]} 44. Ke5 {[%clk 0:00:24]}  Qe3+ {[%clk 0:01:02]} 45. Kf6 {[%clk 0:00:23]}  Qd4+ {[%clk 0:00:47]} 46. Kxe6 {[%clk 0:00:20]}  Bg7 {[%clk 0:00:47]} 47. Qf7 {[%clk 0:00:16]}  Qc4+ {[%clk 0:00:45]} 0-1


[Site "https://www.chess.com"]

[Event "Titled Tuesday Blitz February 15 Late 2022"]
[White "Petrova, Irina"]
[Black "Adewumi, Tanitoluwa"]
[WhiteFideId "14124122"]
[BlackFideId "30966396"]
[WhiteElo "1988"]
[BlackElo "2533"]
[Result "0-1"]
[Round "07"]
[TimeControl "180+1"]
[Date "2022.02.16"]
[WhiteClock "0:00:08"]
[BlackClock "0:00:04"]

1. e4 {[%clk 0:03:00]}  g6 {[%clk 0:03:00]} 2. d4 {[%clk 0:02:59]}  Bg7 {[%clk 0:03:01]} 3. Nc3 {[%clk 0:02:58]}  c6 {[%clk 0:03:02]} 4. f4 {[%clk 0:02:55]}  d5 {[%clk 0:02:57]} 5. e5 {[%clk 0:02:55]}  h5 {[%clk 0:02:57]} 6. Nf3 {[%clk 0:02:51]}  Bg4 {[%clk 0:02:58]} 7. Be2 {[%clk 0:02:46]}  Bxf3 {[%clk 0:02:56]} 8. Bxf3 {[%clk 0:02:47]}  e6 {[%clk 0:02:57]} 9. O-O {[%clk 0:02:44]}  Nh6 {[%clk 0:02:55]} 10. Be3 {[%clk 0:02:44]}  Nf5 {[%clk 0:02:54]} 11. Bf2 {[%clk 0:02:44]}  Nd7 {[%clk 0:02:53]} 12. Ne2 {[%clk 0:02:44]}  Bf8 {[%clk 0:02:42]} 13. g3 {[%clk 0:02:40]}  Qb6 {[%clk 0:02:34]} 14. b3 {[%clk 0:02:38]}  Be7 {[%clk 0:01:54]} 15. c4 {[%clk 0:02:37]}  O-O {[%clk 0:01:52]} 16. c5 {[%clk 0:02:33]}  Qa6 {[%clk 0:01:53]} 17. Nc3 {[%clk 0:02:19]}  b6 {[%clk 0:01:52]} 18. Be2 {[%clk 0:02:16]}  Qb7 {[%clk 0:01:51]} 19. b4 {[%clk 0:02:16]}  a5 {[%clk 0:01:49]} 20. a3 {[%clk 0:02:10]}  Rfb8 {[%clk 0:01:47]} 21. h3 {[%clk 0:01:58]}  axb4 {[%clk 0:01:33]} 22. axb4 {[%clk 0:01:57]}  Rxa1 {[%clk 0:01:34]} 23. Qxa1 {[%clk 0:01:57]}  bxc5 {[%clk 0:01:35]} 24. bxc5 {[%clk 0:01:56]}  Ra8 {[%clk 0:01:27]} 25. Qc1 {[%clk 0:01:51]}  Bd8 {[%clk 0:01:23]} 26. g4 {[%clk 0:01:47]}  hxg4 {[%clk 0:01:20]} 27. hxg4 {[%clk 0:01:48]}  Ng7 {[%clk 0:01:18]} 28. Kg2 {[%clk 0:01:44]}  Qb4 {[%clk 0:01:02]} 29. Rh1 {[%clk 0:01:41]}  Ra3 {[%clk 0:00:38]} 30. Nb1 {[%clk 0:01:19]}  Ra2 {[%clk 0:00:36]} 31. Qe3 {[%clk 0:01:18]}  g5 {[%clk 0:00:23]} 32. Qh3 {[%clk 0:01:13]}  Kf8 {[%clk 0:00:06]} 33. Qh8+ {[%clk 0:01:07]}  Ke7 {[%clk 0:00:06]} 34. Qxg7 {[%clk 0:01:03]}  Rxe2 {[%clk 0:00:06]} 35. Qxg5+ {[%clk 0:01:02]}  Nf6 {[%clk 0:00:03]} 36. Qxf6+ {[%clk 0:01:00]}  Kd7 {[%clk 0:00:02]} 37. Qxf7+ {[%clk 0:01:00]}  Be7 {[%clk 0:00:02]} 38. Rf1 {[%clk 0:00:31]}  Qxd4 {[%clk 0:00:01]} 39. Na3 {[%clk 0:00:20]}  Qe4+ {[%clk 0:00:01]} 40. Kg1 {[%clk 0:00:20]}  Qf3 {[%clk 0:00:01]} 41. Qh5 {[%clk 0:00:16]}  Qxf4 {[%clk 0:00:01]} 42. Qh3 {[%clk 0:00:14]}  Qe4 {[%clk 0:00:01]} 43. Qg2 {[%clk 0:00:13]}  Qg6 {[%clk 0:00:02]} 44. Nb1 {[%clk 0:00:13]}  Re4 {[%clk 0:00:02]} 45. Bg3 {[%clk 0:00:12]}  Rxg4 {[%clk 0:00:02]} 46. Rf3 {[%clk 0:00:11]}  Bh4 {[%clk 0:00:03]} 47. Nd2 {[%clk 0:00:10]}  Bxg3 {[%clk 0:00:03]} 48. Kf1 {[%clk 0:00:10]}  Bxe5 {[%clk 0:00:01]} 49. Qh1 {[%clk 0:00:09]}  Bd4 {[%clk 0:00:01]} 50. Nb3 {[%clk 0:00:09]}  Rg1+ {[%clk 0:00:02]} 51. Ke2 {[%clk 0:00:07]}  Rxh1 {[%clk 0:00:02]} 52. Nxd4 {[%clk 0:00:08]}  Rh2+ {[%clk 0:00:03]} 53. Ke3 {[%clk 0:00:08]}  Qe4# {[%clk 0:00:04]} 0-1


[Site "https://www.chess.com"]

[Event "Titled Tuesday Blitz February 15 Late 2022"]
[White "Qashashvili, Alexandre"]
[Black "Chernomordik, Pavel"]
[WhiteFideId "13600842"]
[BlackFideId "2804530"]
[WhiteElo "2316"]
[BlackElo "2249"]
[Result "0-1"]
[Round "07"]
[TimeControl "180+1"]
[Date "2022.02.16"]
[WhiteClock "0:00:05"]
[BlackClock "0:00:53"]

1. e4 {[%clk 0:03:00]}  g6 {[%clk 0:02:59]} 2. Nc3 {[%clk 0:02:58]}  Bg7 {[%clk 0:02:59]} 3. Nf3 {[%clk 0:02:59]}  d6 {[%clk 0:02:58]} 4. d4 {[%clk 0:02:59]}  a6 {[%clk 0:02:58]} 5. Be3 {[%clk 0:03:00]}  b5 {[%clk 0:02:58]} 6. Qd2 {[%clk 0:03:00]}  Bb7 {[%clk 0:02:58]} 7. Bd3 {[%clk 0:03:00]}  Nd7 {[%clk 0:02:57]} 8. a3 {[%clk 0:03:00]}  c5 {[%clk 0:02:56]} 9. dxc5 {[%clk 0:02:56]}  Nxc5 {[%clk 0:02:56]} 10. h3 {[%clk 0:02:54]}  Qc7 {[%clk 0:02:53]} 11. O-O {[%clk 0:02:49]}  Nf6 {[%clk 0:02:52]} 12. Bh6 {[%clk 0:02:49]}  O-O {[%clk 0:02:51]} 13. Bxg7 {[%clk 0:02:50]}  Kxg7 {[%clk 0:02:51]} 14. Rfe1 {[%clk 0:02:50]}  Rac8 {[%clk 0:02:50]} 15. Re2 {[%clk 0:02:44]}  e5 {[%clk 0:02:48]} 16. Rd1 {[%clk 0:02:41]}  Ne6 {[%clk 0:02:34]} 17. Ree1 {[%clk 0:02:19]}  Rfd8 {[%clk 0:02:31]} 18. Nh2 {[%clk 0:02:14]}  Nc5 {[%clk 0:02:17]} 19. Ng4 {[%clk 0:02:09]}  Nxg4 {[%clk 0:02:12]} 20. hxg4 {[%clk 0:02:10]}  Ne6 {[%clk 0:02:12]} 21. f3 {[%clk 0:02:04]}  Rh8 {[%clk 0:02:06]} 22. Ne2 {[%clk 0:01:50]}  h5 {[%clk 0:02:02]} 23. gxh5 {[%clk 0:01:47]}  Qc5+ {[%clk 0:01:57]} 24. Kf1 {[%clk 0:01:43]}  Rxh5 {[%clk 0:01:57]} 25. Ng3 {[%clk 0:01:30]}  Rh2 {[%clk 0:01:53]} 26. Qe3 {[%clk 0:01:05]}  Qc7 {[%clk 0:01:46]} 27. Kf2 {[%clk 0:01:00]}  Nf4 {[%clk 0:01:44]} 28. Rg1 {[%clk 0:01:00]}  Nh3+ {[%clk 0:01:42]} 29. Kf1 {[%clk 0:00:59]}  Nxg1 {[%clk 0:01:41]} 30. Kxg1 {[%clk 0:00:59]}  Rch8 {[%clk 0:01:34]} 31. Qg5 {[%clk 0:00:48]}  f6 {[%clk 0:01:26]} 32. Qe3 {[%clk 0:00:37]}  Qc5 {[%clk 0:01:25]} 33. Qxc5 {[%clk 0:00:37]}  dxc5 {[%clk 0:01:22]} 34. c4 {[%clk 0:00:34]}  Bc6 {[%clk 0:01:18]} 35. cxb5 {[%clk 0:00:32]}  axb5 {[%clk 0:01:18]} 36. Bc2 {[%clk 0:00:27]}  R2h7 {[%clk 0:01:10]} 37. Rd6 {[%clk 0:00:26]}  Rc8 {[%clk 0:01:09]} 38. Ne2 {[%clk 0:00:20]}  Kf7 {[%clk 0:01:05]} 39. Nc3 {[%clk 0:00:18]}  Ke7 {[%clk 0:01:05]} 40. Rd2 {[%clk 0:00:17]}  Rhh8 {[%clk 0:01:01]} 41. Nd5+ {[%clk 0:00:12]}  Bxd5 {[%clk 0:01:00]} 42. exd5 {[%clk 0:00:13]}  Kd6 {[%clk 0:01:00]} 43. Bxg6 {[%clk 0:00:12]}  c4 {[%clk 0:00:58]} 44. Bf5 {[%clk 0:00:11]}  Rc5 {[%clk 0:00:56]} 45. Be6 {[%clk 0:00:10]}  c3 {[%clk 0:00:55]} 46. bxc3 {[%clk 0:00:10]}  Rxc3 {[%clk 0:00:55]} 47. Rb2 {[%clk 0:00:08]}  Rb8 {[%clk 0:00:54]} 48. Ra2 {[%clk 0:00:05]}  Ra8 {[%clk 0:00:53]} 0-1


[Site "https://www.chess.com"]

[Event "Titled Tuesday Blitz February 15 Late 2022"]
[White "Rorrer, Grayson"]
[Black "Degardin, Sylvain"]
[WhiteFideId "30944996"]
[BlackFideId "20623070"]
[WhiteElo "2122"]
[BlackElo "2156"]
[Result "1-0"]
[Round "07"]
[TimeControl "180+1"]
[Date "2022.02.16"]
[WhiteClock "0:01:24"]
[BlackClock "0:00:13"]

1. e4 {[%clk 0:03:00]}  c5 {[%clk 0:02:58]} 2. Nf3 {[%clk 0:03:00]}  d6 {[%clk 0:02:59]} 3. d4 {[%clk 0:03:00]}  cxd4 {[%clk 0:03:00]} 4. Nxd4 {[%clk 0:03:01]}  Nf6 {[%clk 0:03:00]} 5. Nc3 {[%clk 0:03:02]}  a6 {[%clk 0:03:00]} 6. f3 {[%clk 0:03:00]}  e5 {[%clk 0:03:00]} 7. Nb3 {[%clk 0:03:01]}  Be6 {[%clk 0:03:00]} 8. Be3 {[%clk 0:03:02]}  h5 {[%clk 0:02:59]} 9. Qd2 {[%clk 0:03:01]}  Be7 {[%clk 0:03:00]} 10. Nd5 {[%clk 0:02:58]}  Bxd5 {[%clk 0:02:55]} 11. exd5 {[%clk 0:02:59]}  Nbd7 {[%clk 0:02:52]} 12. O-O-O {[%clk 0:02:57]}  Qc7 {[%clk 0:02:43]} 13. Kb1 {[%clk 0:02:57]}  a5 {[%clk 0:02:39]} 14. a4 {[%clk 0:02:50]}  O-O {[%clk 0:02:35]} 15. Bb5 {[%clk 0:02:50]}  Nb6 {[%clk 0:02:25]} 16. Bxb6 {[%clk 0:02:47]}  Qxb6 {[%clk 0:02:26]} 17. g4 {[%clk 0:02:47]}  hxg4 {[%clk 0:02:20]} 18. fxg4 {[%clk 0:02:48]}  Rfc8 {[%clk 0:02:13]} 19. g5 {[%clk 0:02:35]}  Ne4 {[%clk 0:02:12]} 20. Qg2 {[%clk 0:02:27]}  Nf2 {[%clk 0:02:00]} 21. g6 {[%clk 0:02:27]}  fxg6 {[%clk 0:01:36]} 22. Qxg6 {[%clk 0:02:25]}  Nxd1 {[%clk 0:01:33]} 23. Qe6+ {[%clk 0:02:25]}  Kh8 {[%clk 0:01:32]} 24. Qh3+ {[%clk 0:02:18]}  Kg8 {[%clk 0:01:31]} 25. Bd7 {[%clk 0:02:14]}  Bf6 {[%clk 0:01:05]} 26. Bxc8 {[%clk 0:01:45]}  Nf2 {[%clk 0:00:53]} 27. Be6+ {[%clk 0:01:46]}  Kf8 {[%clk 0:00:50]} 28. Qh5 {[%clk 0:01:24]}  Qc7 {[%clk 0:00:29]} 29. Rf1 {[%clk 0:01:24]}  Ne4 {[%clk 0:00:13]} 30. Qh8+ {[%clk 0:01:24]}  Ke7 {[%clk 0:00:13]} 31. Qxa8 {[%clk 0:01:24]} 1-0


[Site "https://www.chess.com"]

[Event "Titled Tuesday Blitz February 15 Late 2022"]
[White "Sadhwani, Raunak"]
[Black "Papasimakopoulos, Alexandros"]
[WhiteFideId "35093487"]
[BlackFideId "4244125"]
[WhiteElo "2616"]
[BlackElo "2340"]
[Result "1-0"]
[Round "07"]
[TimeControl "180+1"]
[Date "2022.02.15"]
[WhiteClock "0:01:16"]
[BlackClock "0:00:03"]

1. d4 {[%clk 0:03:00]}  f5 {[%clk 0:02:54]} 2. Bg5 {[%clk 0:03:00]}  c6 {[%clk 0:02:54]} 3. Nc3 {[%clk 0:02:56]}  Qb6 {[%clk 0:02:54]} 4. Rb1 {[%clk 0:02:54]}  d5 {[%clk 0:02:54]} 5. e3 {[%clk 0:02:54]}  Nd7 {[%clk 0:02:52]} 6. Nf3 {[%clk 0:02:54]}  Ngf6 {[%clk 0:02:51]} 7. Bd3 {[%clk 0:02:55]}  g6 {[%clk 0:02:52]} 8. O-O {[%clk 0:02:54]}  Bg7 {[%clk 0:02:52]} 9. Ne2 {[%clk 0:02:48]}  O-O {[%clk 0:02:52]} 10. c4 {[%clk 0:02:48]}  h6 {[%clk 0:02:47]} 11. Bf4 {[%clk 0:02:48]}  Ne4 {[%clk 0:02:41]} 12. cxd5 {[%clk 0:02:47]}  cxd5 {[%clk 0:02:41]} 13. Nc3 {[%clk 0:02:39]}  e6 {[%clk 0:02:34]} 14. h3 {[%clk 0:02:37]}  g5 {[%clk 0:02:32]} 15. Bh2 {[%clk 0:02:37]}  a6 {[%clk 0:02:19]} 16. Qe2 {[%clk 0:02:36]}  Ndf6 {[%clk 0:01:57]} 17. Ne5 {[%clk 0:02:34]}  Bd7 {[%clk 0:01:56]} 18. f3 {[%clk 0:02:31]}  Nd6 {[%clk 0:01:50]} 19. Rbc1 {[%clk 0:02:26]}  Rac8 {[%clk 0:01:48]} 20. Kh1 {[%clk 0:02:23]}  Be8 {[%clk 0:01:47]} 21. Rc2 {[%clk 0:02:21]}  Nb5 {[%clk 0:01:45]} 22. Rfc1 {[%clk 0:02:18]}  Nxc3 {[%clk 0:01:44]} 23. Rxc3 {[%clk 0:02:19]}  Rxc3 {[%clk 0:01:43]} 24. Rxc3 {[%clk 0:02:20]}  Bb5 {[%clk 0:01:43]} 25. Bxb5 {[%clk 0:02:17]}  axb5 {[%clk 0:01:39]} 26. Nd3 {[%clk 0:02:10]}  b4 {[%clk 0:01:26]} 27. Rc2 {[%clk 0:02:00]}  b3 {[%clk 0:01:24]} 28. axb3 {[%clk 0:02:01]}  Qxb3 {[%clk 0:01:19]} 29. Be5 {[%clk 0:01:54]}  Qb5 {[%clk 0:01:13]} 30. Nc5 {[%clk 0:01:43]}  Qb6 {[%clk 0:01:08]} 31. Bxf6 {[%clk 0:01:42]}  Bxf6 {[%clk 0:01:06]} 32. Nd7 {[%clk 0:01:42]}  Qa5 {[%clk 0:01:03]} 33. Nxf8 {[%clk 0:01:42]}  Kxf8 {[%clk 0:01:04]} 34. Qd2 {[%clk 0:01:29]}  Qb5 {[%clk 0:01:02]} 35. Qe2 {[%clk 0:01:19]}  Qa5 {[%clk 0:01:00]} 36. Rc1 {[%clk 0:01:20]}  Be7 {[%clk 0:00:57]} 37. f4 {[%clk 0:01:19]}  gxf4 {[%clk 0:00:51]} 38. exf4 {[%clk 0:01:20]}  Qb6 {[%clk 0:00:43]} 39. Qh5 {[%clk 0:01:17]}  Kg7 {[%clk 0:00:23]} 40. Rc3 {[%clk 0:01:16]}  Qxd4 {[%clk 0:00:23]} 41. Rg3+ {[%clk 0:01:17]}  Kf8 {[%clk 0:00:23]} 42. Qxh6+ {[%clk 0:01:17]}  Ke8 {[%clk 0:00:23]} 43. Qxe6 {[%clk 0:01:17]}  Qa4 {[%clk 0:00:03]} 44. Rg8# {[%clk 0:01:16]} 1-0


[Site "https://www.chess.com"]

[Event "Titled Tuesday Blitz February 15 Late 2022"]
[White "Saim, Mohamed Ilias"]
[Black "Desideri, Ricardo Maruchi"]
[WhiteFideId "7900465"]
[BlackFideId "2110440"]
[WhiteElo "2006"]
[BlackElo "1945"]
[Result "0-1"]
[Round "07"]
[TimeControl "180+1"]
[Date "2022.02.16"]
[WhiteClock "0:01:05"]
[BlackClock "0:01:08"]

1. d4 {[%clk 0:03:00]}  Nf6 {[%clk 0:02:58]} 2. Nf3 {[%clk 0:03:00]}  d6 {[%clk 0:02:50]} 3. e3 {[%clk 0:02:59]}  g6 {[%clk 0:02:49]} 4. Bd3 {[%clk 0:02:59]}  Bg7 {[%clk 0:02:50]} 5. O-O {[%clk 0:03:00]}  O-O {[%clk 0:02:49]} 6. c4 {[%clk 0:02:59]}  Nc6 {[%clk 0:02:50]} 7. Nc3 {[%clk 0:02:59]}  e5 {[%clk 0:02:48]} 8. d5 {[%clk 0:02:57]}  Ne7 {[%clk 0:02:47]} 9. e4 {[%clk 0:02:56]}  a5 {[%clk 0:02:36]} 10. h3 {[%clk 0:02:56]}  Nh5 {[%clk 0:02:33]} 11. Be3 {[%clk 0:02:56]}  h6 {[%clk 0:02:26]} 12. Qd2 {[%clk 0:02:55]}  Kh7 {[%clk 0:02:26]} 13. Nh2 {[%clk 0:02:48]}  f5 {[%clk 0:02:20]} 14. exf5 {[%clk 0:02:46]}  Nxf5 {[%clk 0:02:19]} 15. Bxf5 {[%clk 0:02:34]}  gxf5 {[%clk 0:02:17]} 16. g4 {[%clk 0:02:23]}  Nf6 {[%clk 0:01:59]} 17. gxf5 {[%clk 0:02:18]}  Bxf5 {[%clk 0:01:57]} 18. f4 {[%clk 0:02:11]}  e4 {[%clk 0:01:41]} 19. h4 {[%clk 0:01:55]}  Rg8 {[%clk 0:01:38]} 20. Kh1 {[%clk 0:01:54]}  Nh5 {[%clk 0:01:35]} 21. Bf2 {[%clk 0:01:47]}  Bf6 {[%clk 0:01:32]} 22. Qe1 {[%clk 0:01:41]}  Nxf4 {[%clk 0:01:28]} 23. Nxe4 {[%clk 0:01:38]}  Nd3 {[%clk 0:01:20]} 24. Nxf6+ {[%clk 0:01:29]}  Qxf6 {[%clk 0:01:19]} 25. Qd2 {[%clk 0:01:20]}  Be4+ {[%clk 0:01:15]} 26. Nf3 {[%clk 0:01:19]}  Bxf3+ {[%clk 0:01:12]} 27. Kh2 {[%clk 0:01:18]}  Rg2+ {[%clk 0:01:11]} 28. Kh3 {[%clk 0:01:05]}  Qf5# {[%clk 0:01:08]} 0-1


[Site "https://www.chess.com"]

[Event "Titled Tuesday Blitz February 15 Late 2022"]
[White "Tanenbaum, Zachary"]
[Black "Abdyzhapar, Asylbek"]
[WhiteFideId "2060850"]
[BlackFideId "13800337"]
[WhiteElo "2168"]
[BlackElo "2331"]
[Result "1-0"]
[Round "07"]
[TimeControl "180+1"]
[Date "2022.02.16"]
[WhiteClock "0:00:08"]
[BlackClock "0:01:09"]

1. e4 {[%clk 0:03:00]}  e5 {[%clk 0:02:59]} 2. Nf3 {[%clk 0:03:01]}  Nc6 {[%clk 0:03:00]} 3. Bc4 {[%clk 0:03:01]}  Nf6 {[%clk 0:02:57]} 4. d3 {[%clk 0:03:01]}  Bc5 {[%clk 0:02:57]} 5. c3 {[%clk 0:03:00]}  d6 {[%clk 0:02:56]} 6. Nbd2 {[%clk 0:03:00]}  O-O {[%clk 0:02:56]} 7. a4 {[%clk 0:03:01]}  a6 {[%clk 0:02:55]} 8. Nf1 {[%clk 0:03:01]}  Kh8 {[%clk 0:02:55]} 9. Ng3 {[%clk 0:02:59]}  Ng8 {[%clk 0:02:55]} 10. Ng5 {[%clk 0:02:59]}  Nh6 {[%clk 0:02:53]} 11. O-O {[%clk 0:02:38]}  f6 {[%clk 0:02:53]} 12. Ne6 {[%clk 0:02:36]}  Bxe6 {[%clk 0:02:52]} 13. Bxe6 {[%clk 0:02:37]}  Ng8 {[%clk 0:02:49]} 14. Qg4 {[%clk 0:02:04]}  g6 {[%clk 0:02:48]} 15. h4 {[%clk 0:01:56]}  Qe7 {[%clk 0:02:38]} 16. Bd5 {[%clk 0:01:53]}  Nd8 {[%clk 0:02:37]} 17. h5 {[%clk 0:01:43]}  Qg7 {[%clk 0:02:36]} 18. Qh3 {[%clk 0:01:29]}  c6 {[%clk 0:02:35]} 19. Bb3 {[%clk 0:01:27]}  gxh5 {[%clk 0:02:12]} 20. Nxh5 {[%clk 0:00:49]}  Qg6 {[%clk 0:02:12]} 21. Ng3 {[%clk 0:00:49]}  Ne7 {[%clk 0:02:10]} 22. Be3 {[%clk 0:00:47]}  Nf7 {[%clk 0:02:05]} 23. Bxc5 {[%clk 0:00:46]}  dxc5 {[%clk 0:02:05]} 24. f4 {[%clk 0:00:45]}  exf4 {[%clk 0:02:02]} 25. Rxf4 {[%clk 0:00:45]}  Ne5 {[%clk 0:02:02]} 26. Nh5 {[%clk 0:00:34]}  Rad8 {[%clk 0:01:55]} 27. Bc2 {[%clk 0:00:29]}  Qg5 {[%clk 0:01:50]} 28. Raf1 {[%clk 0:00:27]}  N7g6 {[%clk 0:01:38]} 29. Rf5 {[%clk 0:00:25]}  Qg4 {[%clk 0:01:35]} 30. Rxf6 {[%clk 0:00:18]}  Rxf6 {[%clk 0:01:34]} 31. Rxf6 {[%clk 0:00:17]}  Qxh3 {[%clk 0:01:28]} 32. gxh3 {[%clk 0:00:18]}  Nxd3 {[%clk 0:01:22]} 33. Rf7 {[%clk 0:00:15]}  Nde5 {[%clk 0:01:16]} 34. Rxb7 {[%clk 0:00:16]}  Rd2 {[%clk 0:01:14]} 35. Rb8+ {[%clk 0:00:08]}  Nf8 {[%clk 0:01:09]} 36. Rxf8# {[%clk 0:00:08]} 1-0


[Site "https://www.chess.com"]